fUSD/lending_fUSD_20240406
["ID","MTS","AMOUNT","RATE_DAILY","PERIOD"]
[321668153,1712363468659,-500.0,0.00024999,2]
[321668154,1712363468669,-500.0,0.00024999,2]
[321668155,1712363468678,-301.47968484,0.00024999,2]
[321668156,1712363468688,-506.42,0.00024999,2]
[321668157,1712363468698,-506.42,0.00024999,2]
[321668158,1712363468707,-506.42,0.00024999,2]
[321668159,1712363468717,-506.42,0.00024999,2]
[321668160,1712363468727,-506.42,0.00024999,2]
[321668161,1712363468736,-506.42,0.00024999,2]
[321668162,1712363468746,-506.42,0.00024999,2]
[321668163,1712363468755,-506.45493516,0.00024999,2]
[321668164,1712363468765,-721.92,0.00024999,2]
[321668165,1712363468775,-721.92,0.00024999,2]
[321668166,1712363468787,-721.92,0.00024999,2]
[321668167,1712363468796,-721.92,0.00024999,2]
[321668168,1712363468806,-721.92,0.00024999,2]
[321668169,1712363468815,-721.92,0.00024999,2]
[321668170,1712363468829,-721.92,0.00024999,2]
[321668171,1712363468838,-722.15383976,0.00024999,2]
[321668172,1712363468848,-7738637.71961596,0.00025,2]
[321668173,1712363468861,-1710018.85341682,0.00025,2]
[321668174,1712363468874,-1031.45246329,0.00025,2]
[321668175,1712363468890,-6600.0,0.00025,2]
[321668176,1712363469056,-664.39942421,0.00020186,2]
[321668177,1712363469068,-1695.87,0.00020186,2]
[321668178,1712363469081,-2129.19065443,0.00020186,2]
[321668179,1712363469093,-279.66645124,0.00020186,2]
[321668180,1712363469105,-292.85534995,0.00020186,2]
[321668181,1712363469159,-3339.87943909,0.00020186,2]
[321668182,1712363469666,-0.08428769,0.00020186,2]
[321668183,1712363469700,-5030.52653948,0.00020186,2]
[321668184,1712363469722,-2986.32950209,0.00020186,2]
[321668185,1712363469733,-919.21487329,0.00020186,2]
[321668186,1712363470210,-3699.02766099,0.00020186,2]
[321668187,1712363470219,-437.92345111,0.00023252,2]
[321668188,1712363470229,-914.14438949,0.00023252,2]
[321668189,1712363470239,-643.61512608,0.00023253,2]
[321668190,1712363470248,-500.0,0.00024656,2]
[321668191,1712363470258,-587.40360567,0.00024656,2]
[321668192,1712363470268,-500.0,0.00024657,2]
[321668193,1712363470278,-500.0,0.00024657,2]
[321668194,1712363470287,-500.0,0.00024657,2]
[321668195,1712363470296,-500.0,0.00024657,2]
[321668196,1712363470305,-500.0,0.00024657,2]
[321668197,1712363470314,-500.0,0.00024657,2]
[321668198,1712363470324,-500.0,0.00024657,2]
[321668199,1712363470332,-500.0,0.00024657,2]
[321668200,1712363470342,-500.0,0.00024657,2]
[321668201,1712363470351,-500.0,0.00024657,2]
[321668202,1712363470361,-500.0,0.00024657,2]
[321668203,1712363470371,-500.0,0.00024657,2]
[321668204,1712363470381,-500.0,0.00024657,2]
[321668205,1712363470390,-500.0,0.00024657,2]
[321668206,1712363470399,-500.0,0.00024657,2]
[321668207,1712363470410,-500.0,0.00024657,2]
[321668208,1712363470420,-500.0,0.00024657,2]
[321668209,1712363470430,-500.0,0.00024657,2]
[321668210,1712363470439,-500.0,0.00024657,2]
[321668211,1712363470448,-500.0,0.00024657,2]
[321668212,1712363470458,-500.0,0.00024657,2]
[321668213,1712363470467,-287.88576666,0.00024657,2]
[321668216,1712364547165,-2558.5175,0.00021595,2]
[321668222,1712364631789,-431.14331929,0.00021595,2]
[321668223,1712364631803,-652.16150205,0.00021595,2]
[321668224,1712364631817,-729.76710851,0.00021595,2]
[321668225,1712364631844,-816.24453498,0.00021595,2]
[321668226,1712364631959,-1219.90806987,0.00021595,2]
[321668227,1712364632069,-1217.95811511,0.00021595,2]
[321668242,1712364638260,-24298.52499672,0.00021595,2]
[321668243,1712364638275,-331.1,0.00021699,2]
[321668244,1712364638285,-600.0,0.00023559,2]
[321668245,1712364638295,-200.0,0.00023567,2]
[321668246,1712364638304,-478.19,0.0002358,2]
[321668247,1712364638314,-250.0,0.00023634,2]
[321668248,1712364638323,-400.0,0.00023707,2]
[321668249,1712364638333,-331.1,0.00023963,2]
[321668250,1712364638343,-224.46237227,0.00024,2]
[321668251,1712364638352,-1242.5883,0.00024256,2]
[321668252,1712364638362,-150.99,0.00024256,2]
[321668253,1712364638371,-499.99,0.00024256,2]
[321668254,1712364638380,-91576.556,0.00024356,2]
[321668255,1712364638390,-4190.1622,0.00024356,2]
[321668256,1712364638400,-2500.0,0.00024356,2]
[321668257,1712364638410,-113630.5804,0.00024356,2]
[321668258,1712364638419,-1000.0,0.00024356,2]
[321668259,1712364638429,-154.24770897,0.00024356,2]
[321668260,1712364638439,-1072.0,0.000244,2]
[321668261,1712364638448,-154.24770893,0.00024434,2]
[321668263,1712364638457,-193790.3778,0.00024456,2]
[321668266,1712364638467,-5829.7767,0.00024456,2]
[321668267,1712364638476,-771.8477,0.00024456,2]
[321668268,1712364638486,-4716.9153,0.00024457,2]
[321668269,1712364638497,-1001.75414812,0.000245,2]
[321668271,1712364638506,-333.040609,0.00024506,2]
[321668272,1712364638519,-333.040609,0.00024506,2]
[321668273,1712364638528,-333.040609,0.00024506,2]
[321668274,1712364638537,-333.040609,0.00024506,2]
[321668275,1712364638546,-333.040609,0.00024506,2]
[321668276,1712364638555,-333.040609,0.00024506,2]
[321668277,1712364638565,-333.040609,0.00024506,2]
[321668278,1712364638574,-333.040609,0.00024506,2]
[321668279,1712364638584,-333.040609,0.00024506,2]
[321668280,1712364638594,-333.040609,0.00024506,2]
[321668281,1712364638604,-154.24770893,0.00024511,2]
[321668282,1712364638614,-152.0,0.00024543,3]
[321668283,1712364638623,-1552.1348,0.00024556,2]
[321668284,1712364638633,-245000.0,0.00024556,2]
[321668285,1712364638643,-1000.0,0.00024556,2]
[321668286,1712364638652,-27132.3243,0.00024557,2]
[321668287,1712364638661,-500.0,0.00024557,2]
[321668288,1712364638671,-39921.1963,0.00024557,2]
[321668289,1712364638681,-100000.0,0.00024557,2]
[321668290,1712364638690,-9664.7229,0.00024557,2]
[321668291,1712364638700,-1029.3648,0.00024557,2]
[321668292,1712364638709,-154.24770893,0.00024589,2]
[321668293,1712364638719,-333.040609,0.00024606,2]
[321668294,1712364638728,-333.040609,0.00024606,2]
[321668295,1712364638738,-333.040609,0.00024606,2]
[321668296,1712364638748,-333.040609,0.00024606,2]
[321668297,1712364638757,-333.040609,0.00024606,2]
[321668298,1712364638768,-333.040609,0.00024606,2]
[321668299,1712364638777,-155.0,0.00024654,2]
[321668300,1712364638786,-500.0,0.00024654,2]
[321668301,1712364638796,-240.50289803,0.00024655,2]
[321668302,1712364638810,-155.0,0.00024655,2]
[321668303,1712364638826,-304.52714021,0.00024655,2]
[321668304,1712364638836,-564.30040412,0.00024656,2]
[321668305,1712364638846,-448317.72557933,0.00024656,2]
[321668306,1712364638855,-500.0,0.00024657,2]
[321668307,1712364638865,-500.0,0.00024657,2]
[321668308,1712364638875,-500.0,0.00024657,2]
[321668309,1712364638884,-500.0,0.00024657,2]
[321668310,1712364638894,-500.0,0.00024657,2]
[321668311,1712364638904,-500.0,0.00024657,2]
[321668312,1712364638914,-500.0,0.00024657,2]
[321668313,1712364638924,-500.0,0.00024657,2]
[321668314,1712364638933,-500.0,0.00024657,2]
[321668315,1712364638942,-530.35,0.00024657,2]
[321668316,1712364638952,-500.0,0.00024657,2]
[321668317,1712364638962,-500.0,0.00024657,2]
[321668318,1712364638972,-500.0,0.00024657,2]
[321668319,1712364638982,-500.0,0.00024657,2]
[321668320,1712364638991,-500.0,0.00024657,2]
[321668321,1712364639001,-500.0,0.00024657,2]
[321668322,1712364639010,-500.0,0.00024657,2]
[321668323,1712364639021,-500.0,0.00024657,2]
[321668324,1712364639031,-500.0,0.00024657,2]
[321668325,1712364639040,-500.0,0.00024657,2]
[321668326,1712364639051,-500.0,0.00024657,2]
[321668327,1712364639061,-500.0,0.00024657,2]
[321668328,1712364639070,-500.0,0.00024657,2]
[321668329,1712364639079,-500.0,0.00024657,2]
[321668330,1712364639089,-500.0,0.00024657,2]
[321668331,1712364639100,-500.0,0.00024657,2]
[321668332,1712364639109,-500.0,0.00024657,2]
[321668333,1712364639119,-500.0,0.00024657,2]
[321668334,1712364639128,-500.0,0.00024657,2]
[321668335,1712364639137,-500.0,0.00024657,2]
[321668336,1712364639147,-500.0,0.00024657,2]
[321668337,1712364639161,-500.0,0.00024657,2]
[321668338,1712364639170,-500.0,0.00024657,2]
[321668339,1712364639179,-500.0,0.00024657,2]
[321668340,1712364639189,-500.0,0.00024657,2]
[321668341,1712364639199,-500.0,0.00024657,2]
[321668342,1712364639208,-500.0,0.00024657,2]
[321668343,1712364639217,-500.0,0.00024657,2]
[321668344,1712364639227,-500.0,0.00024657,2]
[321668345,1712364639237,-500.0,0.00024657,2]
[321668346,1712364639247,-500.0,0.00024657,2]
[321668347,1712364639257,-500.0,0.00024657,2]
[321668348,1712364639268,-500.0,0.00024657,2]
[321668349,1712364639277,-500.0,0.00024657,2]
[321668350,1712364639287,-500.0,0.00024657,2]
[321668351,1712364639297,-500.0,0.00024657,2]
[321668352,1712364639307,-500.0,0.00024657,2]
[321668353,1712364639317,-500.0,0.00024657,2]
[321668354,1712364639327,-500.0,0.00024657,2]
[321668355,1712364639337,-555.12476966,0.00024657,2]
[321668356,1712364639347,-500.0,0.00024657,2]
[321668357,1712364639356,-500.0,0.00024657,2]
[321668358,1712364639366,-500.0,0.00024657,2]
[321668359,1712364639376,-500.0,0.00024657,2]
[321668360,1712364639386,-500.0,0.00024657,2]
[321668361,1712364639395,-500.0,0.00024657,2]
[321668362,1712364639405,-500.0,0.00024657,2]
[321668363,1712364639414,-250.05,0.00024657,2]
[321668364,1712364639423,-574.25,0.00024657,2]
[321668365,1712364639434,-500.0,0.00024657,2]
[321668366,1712364639443,-500.0,0.00024657,2]
[321668367,1712364639454,-500.0,0.00024657,2]
[321668368,1712364639464,-249.75,0.00024657,2]
[321668369,1712364639474,-500.0,0.00024657,2]
[321668370,1712364639484,-500.0,0.00024657,2]
[321668371,1712364639493,-500.0,0.00024657,2]
[321668372,1712364639502,-500.0,0.00024657,2]
[321668373,1712364639512,-500.0,0.00024657,2]
[321668374,1712364639525,-500.0,0.00024657,2]
[321668375,1712364639534,-546.43,0.00024657,2]
[321668376,1712364639544,-509.82,0.00024657,2]
[321668377,1712364639556,-500.0,0.00024657,2]
[321668378,1712364639567,-342.96,0.00024657,2]
[321668379,1712364639577,-500.0,0.00024657,2]
[321668380,1712364639587,-500.0,0.00024657,2]
[321668381,1712364639597,-500.0,0.00024657,2]
[321668382,1712364639607,-572.16,0.00024657,2]
[321668383,1712364639616,-500.0,0.00024657,2]
[321668384,1712364639626,-500.0,0.00024657,2]
[321668385,1712364639636,-500.0,0.00024657,2]
[321668386,1712364639646,-500.0,0.00024657,2]
[321668387,1712364639657,-500.0,0.00024657,2]
[321668388,1712364639669,-500.0,0.00024657,2]
[321668389,1712364639681,-500.0,0.00024657,2]
[321668390,1712364639691,-500.0,0.00024657,2]
[321668391,1712364639701,-365.08,0.00024657,2]
[321668392,1712364639711,-500.0,0.00024657,2]
[321668393,1712364639720,-500.0,0.00024657,2]
[321668394,1712364639730,-500.0,0.00024657,2]
[321668395,1712364639739,-517.92,0.00024657,2]
[321668396,1712364639749,-500.0,0.00024657,2]
[321668397,1712364639758,-500.0,0.00024657,2]
[321668398,1712364639769,-500.0,0.00024657,2]
[321668399,1712364639779,-500.0,0.00024657,2]
[321668400,1712364639789,-500.0,0.00024657,2]
[321668401,1712364639799,-500.0,0.00024657,2]
[321668402,1712364639808,-500.0,0.00024657,2]
[321668403,1712364639818,-257.5,0.00024657,2]
[321668404,1712364639828,-519.54,0.00024657,2]
[321668405,1712364639838,-500.0,0.00024657,2]
[321668406,1712364639848,-227.49,0.00024657,2]
[321668407,1712364639857,-500.0,0.00024657,2]
[321668408,1712364639866,-500.0,0.00024657,2]
[321668409,1712364639876,-500.0,0.00024657,2]
[321668410,1712364639886,-524.33,0.00024657,2]
[321668411,1712364639895,-591.16992638,0.00024657,2]
[321668412,1712364639905,-500.0,0.00024657,2]
[321668413,1712364639914,-500.0,0.00024657,2]
[321668414,1712364639923,-315.98,0.00024657,2]
[321668415,1712364639933,-500.0,0.00024657,2]
[321668416,1712364639942,-500.0,0.00024657,2]
[321668417,1712364639952,-500.0,0.00024657,2]
[321668418,1712364639961,-500.0,0.00024657,2]
[321668419,1712364639970,-500.0,0.00024657,2]
[321668420,1712364639980,-500.0,0.00024657,2]
[321668421,1712364639989,-500.0,0.00024657,2]
[321668422,1712364639999,-500.0,0.00024657,2]
[321668423,1712364640009,-500.0,0.00024657,2]
[321668424,1712364640019,-500.0,0.00024657,2]
[321668425,1712364640028,-2501.61,0.00024657,2]
[321668426,1712364640038,-2501.61,0.00024657,2]
[321668427,1712364640048,-2501.61,0.00024657,2]
[321668428,1712364640061,-2501.61,0.00024657,2]
[321668429,1712364640071,-2501.61,0.00024657,2]
[321668430,1712364640082,-500.0,0.00024657,2]
[321668431,1712364640093,-500.0,0.00024657,2]
[321668432,1712364640104,-500.0,0.00024657,2]
[321668433,1712364640115,-500.0,0.00024657,2]
[321668434,1712364640126,-500.0,0.00024657,2]
[321668435,1712364640136,-500.0,0.00024657,2]
[321668436,1712364640145,-500.0,0.00024657,2]
[321668437,1712364640158,-500.0,0.00024657,2]
[321668438,1712364640169,-500.0,0.00024657,2]
[321668439,1712364640179,-500.0,0.00024657,2]
[321668440,1712364640189,-500.0,0.00024657,2]
[321668441,1712364640200,-500.0,0.00024657,2]
[321668442,1712364640209,-500.0,0.00024657,2]
[321668443,1712364640220,-500.0,0.00024657,2]
[321668444,1712364640232,-500.0,0.00024657,2]
[321668445,1712364640243,-559.33,0.00024657,2]
[321668446,1712364640252,-500.0,0.00024657,2]
[321668447,1712364640264,-500.0,0.00024657,2]
[321668448,1712364640275,-500.0,0.00024657,2]
[321668449,1712364640285,-500.0,0.00024657,2]
[321668450,1712364640295,-500.0,0.00024657,2]
[321668451,1712364640306,-604.13,0.00024657,2]
[321668452,1712364640315,-604.13,0.00024657,2]
[321668453,1712364640325,-604.13,0.00024657,2]
[321668454,1712364640335,-500.0,0.00024657,2]
[321668455,1712364640345,-604.13,0.00024657,2]
[321668456,1712364640354,-604.13,0.00024657,2]
[321668457,1712364640363,-500.0,0.00024657,2]
[321668458,1712364640372,-500.0,0.00024657,2]
[321668459,1712364640382,-500.0,0.00024657,2]
[321668460,1712364640391,-500.0,0.00024657,2]
[321668461,1712364640401,-500.0,0.00024657,2]
[321668462,1712364640412,-358.12,0.00024657,2]
[321668463,1712364640424,-500.0,0.00024657,2]
[321668464,1712364640434,-500.0,0.00024657,2]
[321668465,1712364640444,-500.0,0.00024657,2]
[321668466,1712364640453,-500.0,0.00024657,2]
[321668467,1712364640462,-532.98,0.00024657,2]
[321668468,1712364640472,-500.0,0.00024657,2]
[321668469,1712364640482,-500.0,0.00024657,2]
[321668470,1712364640492,-232.32,0.00024657,2]
[321668471,1712364640502,-500.0,0.00024657,2]
[321668472,1712364640513,-609.06478241,0.00024657,2]
[321668473,1712364640523,-500.0,0.00024657,2]
[321668474,1712364640532,-500.0,0.00024657,2]
[321668475,1712364640543,-500.0,0.00024657,2]
[321668476,1712364640552,-500.0,0.00024657,2]
[321668477,1712364640561,-500.0,0.00024657,2]
[321668478,1712364640571,-500.0,0.00024657,2]
[321668479,1712364640580,-500.0,0.00024657,2]
[321668480,1712364640590,-500.0,0.00024657,2]
[321668481,1712364640599,-500.0,0.00024657,2]
[321668482,1712364640609,-500.0,0.00024657,2]
[321668483,1712364640619,-500.0,0.00024657,2]
[321668484,1712364640629,-500.0,0.00024657,2]
[321668485,1712364640638,-500.0,0.00024657,2]
[321668486,1712364640647,-364.88,0.00024657,2]
[321668487,1712364640658,-500.0,0.00024657,2]
[321668488,1712364640668,-500.0,0.00024657,2]
[321668489,1712364640677,-500.0,0.00024657,2]
[321668490,1712364640687,-500.0,0.00024657,2]
[321668491,1712364640696,-500.0,0.00024657,2]
[321668492,1712364640706,-219.01,0.00024657,2]
[321668493,1712364640715,-500.0,0.00024657,2]
[321668494,1712364640724,-500.0,0.00024657,2]
[321668495,1712364640734,-506.35423334,0.00024657,2]
[321668496,1712364640743,-500.0,0.00024657,2]
[321668497,1712364640752,-500.0,0.00024657,2]
[321668498,1712364640762,-558.21,0.00024657,2]
[321668499,1712364640771,-500.0,0.00024657,2]
[321668500,1712364640780,-500.0,0.00024657,2]
[321668501,1712364640789,-500.0,0.00024657,2]
[321668502,1712364640799,-500.0,0.00024657,2]
[321668503,1712364640808,-408.47,0.00024657,2]
[321668504,1712364640817,-500.0,0.00024657,2]
[321668505,1712364640826,-500.0,0.00024657,2]
[321668506,1712364640836,-288.4,0.00024657,2]
[321668507,1712364640845,-500.0,0.00024657,2]
[321668508,1712364640854,-500.0,0.00024657,2]
[321668509,1712364640864,-500.0,0.00024657,2]
[321668510,1712364640873,-500.0,0.00024657,2]
[321668511,1712364640882,-500.0,0.00024657,2]
[321668512,1712364640892,-387.77,0.00024657,2]
[321668513,1712364640901,-500.0,0.00024657,2]
[321668514,1712364640910,-500.0,0.00024657,2]
[321668515,1712364640920,-500.0,0.00024657,2]
[321668516,1712364640929,-500.0,0.00024657,2]
[321668517,1712364640938,-500.0,0.00024657,2]
[321668518,1712364640948,-500.0,0.00024657,2]
[321668519,1712364640957,-500.0,0.00024657,2]
[321668520,1712364640966,-500.0,0.00024657,2]
[321668521,1712364640975,-500.0,0.00024657,2]
[321668522,1712364640984,-500.0,0.00024657,2]
[321668523,1712364640994,-154.24770893,0.00024667,2]
[321668524,1712364641003,-1433.58977006,0.00024674,2]
[321668525,1712364641014,-1000.0,0.000247,2]
[321668526,1712364641023,-154.24770893,0.00024745,2]
[321668527,1712364641033,-164.66928834,0.0002475,2]
[321668528,1712364641043,-2222.45717539,0.000248,2]
[321668529,1712364641053,-200.0,0.000248,2]
[321668530,1712364641062,-800.0,0.000248,2]
[321668531,1712364641071,-207.90077,0.000248,2]
[321668532,1712364641080,-500.0,0.000248,2]
[321668533,1712364641090,-1000.0,0.000248,2]
[321668534,1712364641100,-154.24770893,0.00024822,2]
[321668535,1712364641109,-500.0,0.00024854,2]
[321668536,1712364641120,-557.012,0.00024863,2]
[321668537,1712364641129,-1942.0,0.00024863,2]
[321668538,1712364641140,-214.0,0.00024863,2]
[321668539,1712364641150,-207.0,0.00024863,2]
[321668540,1712364641165,-2180.171,0.00024863,2]
[321668541,1712364641174,-4788.0,0.00024863,2]
[321668542,1712364641184,-150.0,0.00024863,2]
[321668543,1712364641194,-232.018,0.00024863,2]
[321668544,1712364641205,-500.0,0.00024878,2]
[321668545,1712364641215,-7500.0,0.00024899,2]
[321668546,1712364641224,-542.0,0.000249,2]
[321668547,1712364641234,-1000.0,0.000249,2]
[321668548,1712364641245,-154.24770893,0.000249,2]
[321668549,1712364641255,-333.040609,0.00024906,2]
[321668550,1712364641266,-333.040609,0.00024906,2]
[321668551,1712364641276,-333.040609,0.00024906,2]
[321668552,1712364641286,-333.040609,0.00024906,2]
[321668553,1712364641296,-333.040609,0.00024906,2]
[321668554,1712364641305,-333.040609,0.00024906,2]
[321668555,1712364641315,-333.040609,0.00024906,2]
[321668556,1712364641325,-333.040609,0.00024906,2]
[321668557,1712364641334,-333.040609,0.00024906,2]
[321668558,1712364641344,-333.040609,0.00024906,2]
[321668559,1712364641354,-596.12132909,0.00024996,2]
[321668560,1712364641363,-500.0,0.00024996,2]
[321668561,1712364641372,-500.0,0.00024996,2]
[321668562,1712364641382,-2501.61,0.00024996,2]
[321668563,1712364641391,-500.0,0.00024996,2]
[321668564,1712364641401,-500.0,0.00024996,2]
[321668565,1712364641410,-500.0,0.00024996,2]
[321668566,1712364641420,-500.0,0.00024996,2]
[321668567,1712364641429,-604.13,0.00024996,2]
[321668568,1712364641438,-604.13,0.00024996,2]
[321668569,1712364641448,-500.0,0.00024996,2]
[321668570,1712364641457,-500.0,0.00024996,2]
[321668571,1712364641466,-500.0,0.00024996,2]
[321668572,1712364641475,-630.74591314,0.00024996,2]
[321668573,1712364641484,-500.0,0.00024996,2]
[321668574,1712364641493,-500.0,0.00024996,2]
[321668575,1712364641502,-295488.3334193,0.00024997,2]
[321668576,1712364641512,-13829.0390221,0.00024997,2]
[321668577,1712364641522,-5203.9058906,0.00024997,2]
[321668578,1712364641531,-40717.1314373,0.00024997,2]
[321668579,1712364641540,-2014.2000321,0.00024997,2]
[321668580,1712364641549,-2359.9107718,0.00024997,2]
[321668581,1712364641560,-35600.2123986,0.00024997,2]
[321668582,1712364641571,-500.0,0.00024998,2]
[321668583,1712364641580,-150.01,0.00024999,2]
[321668584,1712364641592,-4427.26216231,0.00024999,2]
[321668585,1712364641602,-329.96488695,0.00024999,2]
[321668586,1712364641611,-500.0,0.00024999,2]
[321668587,1712364641620,-500.0,0.00024999,2]
[321668588,1712364641630,-500.0,0.00024999,2]
[321668589,1712364641640,-500.0,0.00024999,2]
[321668590,1712364641649,-594.3095122,0.00024999,2]
[321668591,1712364641658,-500.0,0.00024999,2]
[321668592,1712364641667,-500.0,0.00024999,2]
[321668593,1712364641676,-500.0,0.00024999,2]
[321668594,1712364641686,-500.0,0.00024999,2]
[321668595,1712364641695,-500.0,0.00024999,2]
[321668596,1712364641705,-500.0,0.00024999,2]
[321668597,1712364641714,-465.04946697,0.00024999,2]
[321668598,1712364641723,-2501.61,0.00024999,2]
[321668599,1712364641732,-2501.61,0.00024999,2]
[321668600,1712364641741,-2501.61,0.00024999,2]
[321668601,1712364641750,-2501.61,0.00024999,2]
[321668602,1712364641759,-2501.61,0.00024999,2]
[321668603,1712364641770,-2501.61,0.00024999,2]
[321668604,1712364641779,-2501.61,0.00024999,2]
[321668605,1712364641789,-2501.61,0.00024999,2]
[321668606,1712364641798,-2501.61,0.00024999,2]
[321668607,1712364641807,-2501.61,0.00024999,2]
[321668608,1712364641816,-2501.61,0.00024999,2]
[321668609,1712364641826,-2501.61,0.00024999,2]
[321668610,1712364641835,-2501.61,0.00024999,2]
[321668611,1712364641844,-2501.61,0.00024999,2]
[321668612,1712364641853,-2501.61,0.00024999,2]
[321668613,1712364641862,-2501.61,0.00024999,2]
[321668614,1712364641871,-2501.61,0.00024999,2]
[321668615,1712364641880,-2501.81363272,0.00024999,2]
[321668616,1712364641889,-500.0,0.00024999,2]
[321668617,1712364641899,-500.0,0.00024999,2]
[321668618,1712364641907,-500.0,0.00024999,2]
[321668619,1712364641917,-459.01968484,0.00024999,2]
[321668620,1712364641926,-500.0,0.00024999,2]
[321668621,1712364641935,-500.0,0.00024999,2]
[321668622,1712364641944,-500.0,0.00024999,2]
[321668623,1712364641953,-586.25493516,0.00024999,2]
[321668624,1712364641963,-263.3,0.00024999,2]
[321668625,1712364641972,-604.13,0.00024999,2]
[321668626,1712364641981,-500.0,0.00024999,2]
[321668627,1712364641991,-500.0,0.00024999,2]
[321668628,1712364642000,-604.13,0.00024999,2]
[321668629,1712364642010,-604.13,0.00024999,2]
[321668630,1712364642020,-500.0,0.00024999,2]
[321668631,1712364642029,-500.0,0.00024999,2]
[321668632,1712364642039,-604.13,0.00024999,2]
[321668633,1712364642048,-604.13,0.00024999,2]
[321668634,1712364642056,-500.0,0.00024999,2]
[321668635,1712364642066,-604.13,0.00024999,2]
[321668636,1712364642074,-500.0,0.00024999,2]
[321668637,1712364642083,-497.51383976,0.00024999,2]
[321668638,1712364642092,-604.13,0.00024999,2]
[321668639,1712364642102,-604.13,0.00024999,2]
[321668640,1712364642111,-604.13,0.00024999,2]
[321668641,1712364642120,-604.13,0.00024999,2]
[321668642,1712364642129,-604.13,0.00024999,2]
[321668643,1712364642139,-604.13,0.00024999,2]
[321668644,1712364642148,-604.13,0.00024999,2]
[321668645,1712364642159,-604.13,0.00024999,2]
[321668646,1712364642169,-604.13,0.00024999,2]
[321668647,1712364642178,-604.13,0.00024999,2]
[321668648,1712364642188,-604.18,0.00024999,2]
[321668649,1712364642198,-243.0,0.00024999,2]
[321668650,1712364642207,-500.0,0.00024999,2]
[321668651,1712364642216,-500.0,0.00024999,2]
[321668652,1712364642225,-500.0,0.00024999,2]
[321668653,1712364642415,-500.0,0.00024999,2]
[321668654,1712364642425,-500.0,0.00024999,2]
[321668655,1712364642434,-500.0,0.00024999,2]
[321668656,1712364642443,-500.0,0.00024999,2]
[321668657,1712364642453,-500.0,0.00024999,2]
[321668658,1712364642462,-622.882482,0.00024999,2]
[321668659,1712364642472,-521329.14030929,0.00024999,3]
[321668660,1712364642481,-6266683.54260499,0.00025,2]
[321668661,1712364642532,-1710018.85341682,0.00025,2]
[321668663,1712364642745,-1687.68368625,0.00025,2]
[321668664,1712364642757,-1234.0075126,0.00025,2]
[321668668,1712364642996,-1368.64124019,0.00024656,2]
[321668669,1712364643005,-331.40205981,0.00025,2]
[321668670,1712364643175,-5926.98658298,0.00025,2]
[321668673,1712364672407,150.0,0.000154,2]
[321668674,1712364672430,150.0,0.000154,2]
[321668675,1712364672453,150.0,0.000154,2]
[321668676,1712364672476,150.0,0.000154,2]
[321668677,1712364672499,150.0,0.000154,2]
[321668678,1712364672521,150.0,0.000154,2]
[321668679,1712364672546,150.0,0.000154,2]
[321668680,1712364672569,150.0,0.000154,2]
[321668681,1712364672592,150.0,0.000154,2]
[321668682,1712364672613,150.0,0.000154,2]
[321668683,1712364672635,150.0,0.000154,2]